{"text_format":"1","workbook":"xlsx","n_sheets":5,"sheets":["Бақылау тақтасы","Шығындар & табыс","Бюджет есебі","Деректер тізімдері","Санат жиынтық кестесі"],"not_rendered":{"charts":3,"images":0,"macros":0,"external_links":0,"defined_names":18,"comments":0,"pivot_tables":2},"unopened":[],"bounds":{"document_bytes":16777216,"sheet_cells":100000,"rows_first":2000,"rows_last":500,"rows_between":2000,"halvings":0,"cell_chars":16384,"cell_head_chars":4096},"cells_cut":0,"cells_raw":0,"read":"whole","date_system":"1900"}

{"sheet":"Бақылау тақтасы","index":0,"n_rows":21,"n_cols":16,"rows_kept":21,"cut":false,"hidden":false,"merged":[[10,9,10,10],[9,9,9,10],[8,9,8,10],[5,2,5,3]]}
[]
[null,null,"Жарты айлық әшкі бюджет",null,null,null,null,null,null,null,null,null,null,null,null,"БАҚЫЛАУ ТАҚТАСЫ"]
[]
[]
[]
[null,null,{"$f":"CHOOSE(АйСаны,\"Қаңтар\",\"Ақпан\",\"Наурыз\",\"Сәуір\",\"Мамыр\",\"Маусым\",\"Шілде\",\"Тамыз\",\"Қыркүйек\",\"Қазан\",\"Қараша\",\"Желтоқсан\")","v":"Тамыз"},null,8,null,null,null,null,null,2012]
[]
[]
[null,null,"АЙЛЫҚ ЖАЛПЫ ЖИЫНДАР","Monthly Totals",null,null,null,null,null,"ЖЫЛДЫҚ ЖАЛПЫ ЖИЫНДАР",null,"Annual Totals"]
[null,null,"ТАБЫС","Шығындар",{"$f":"SUMIF(Шығындар[КҮНІ],\"<=\"&DateMonthEnd,Шығындар[СОМА])-SUMIF(Шығындар[КҮНІ],\"<\"&DateMonthStart,Шығындар[СОМА])","v":0},null,null,null,null,"ТАБЫС",null,"Шығындар",{"$f":"SUM(IF(YEAR(Шығындар[КҮНІ])=K6,Шығындар[СОМА]))","v":1225}]
[null,null,"ШЫҒЫНДАР","кіріс",{"$f":"SUMIF(кіріс[КҮНІ],\"<=\"&DateMonthEnd,кіріс[СОМА])-SUMIF(кіріс[КҮНІ],\"<\"&DateMonthStart,кіріс[СОМА])","v":0},null,null,null,null,"ШЫҒЫНДАР",null,"кіріс",{"$f":"SUM(IF(YEAR(кіріс[КҮНІ])=K6,кіріс[СОМА]))","v":0}]
[]
[]
[]
[]
[]
[null,null,null,"ҚАҢТАР","АҚПАН","НАУРЫЗ","СӘУІР","МАМЫР","МАУСЫМ","ШІЛДЕ","ТАМЫЗ","ҚЫРКҮЙЕК","ҚАЗАН","ҚАРАША","ЖЕЛТОҚСАН"]
[null,null,"1-15 табыс",{"$f":"SUMIFS(кіріс[СОМА],кіріс[СИПАТТАМА],\"<=\"&DtMiddle,кіріс[СИПАТТАМА],\">=\"&DtStart)","v":0},{"$f":"SUMIFS(кіріс[СОМА],кіріс[СИПАТТАМА],\"<=\"&DtMiddle,кіріс[СИПАТТАМА],\">=\"&DtStart)","v":0},{"$f":"SUMIFS(кіріс[СОМА],кіріс[СИПАТТАМА],\"<=\"&DtMiddle,кіріс[СИПАТТАМА],\">=\"&DtStart)","v":0},{"$f":"SUMIFS(кіріс[СОМА],кіріс[СИПАТТАМА],\"<=\"&DtMiddle,кіріс[СИПАТТАМА],\">=\"&DtStart)","v":0},{"$f":"SUMIFS(кіріс[СОМА],кіріс[СИПАТТАМА],\"<=\"&DtMiddle,кіріс[СИПАТТАМА],\">=\"&DtStart)","v":0},{"$f":"SUMIFS(кіріс[СОМА],кіріс[СИПАТТАМА],\"<=\"&DtMiddle,кіріс[СИПАТТАМА],\">=\"&DtStart)","v":0},{"$f":"SUMIFS(кіріс[СОМА],кіріс[СИПАТТАМА],\"<=\"&DtMiddle,кіріс[СИПАТТАМА],\">=\"&DtStart)","v":0},{"$f":"SUMIFS(кіріс[СОМА],кіріс[СИПАТТАМА],\"<=\"&DtMiddle,кіріс[СИПАТТАМА],\">=\"&DtStart)","v":0},{"$f":"SUMIFS(кіріс[СОМА],кіріс[СИПАТТАМА],\"<=\"&DtMiddle,кіріс[СИПАТТАМА],\">=\"&DtStart)","v":0},{"$f":"SUMIFS(кіріс[СОМА],кіріс[СИПАТТАМА],\"<=\"&DtMiddle,кіріс[СИПАТТАМА],\">=\"&DtStart)","v":0},{"$f":"SUMIFS(кіріс[СОМА],кіріс[СИПАТТАМА],\"<=\"&DtMiddle,кіріс[СИПАТТАМА],\">=\"&DtStart)","v":0},{"$f":"SUMIFS(кіріс[СОМА],кіріс[СИПАТТАМА],\"<=\"&DtMiddle,кіріс[СИПАТТАМА],\">=\"&DtStart)","v":0}]
[null,null,"Ай соңындағы 16-табыс",{"$f":"SUMIFS(кіріс[СОМА],кіріс[СИПАТТАМА],\"<=\"&DtEnd,кіріс[СИПАТТАМА],\">=\"&DtMiddle+1)","v":0},{"$f":"SUMIFS(кіріс[СОМА],кіріс[СИПАТТАМА],\"<=\"&DtEnd,кіріс[СИПАТТАМА],\">=\"&DtMiddle+1)","v":0},{"$f":"SUMIFS(кіріс[СОМА],кіріс[СИПАТТАМА],\"<=\"&DtEnd,кіріс[СИПАТТАМА],\">=\"&DtMiddle+1)","v":0},{"$f":"SUMIFS(кіріс[СОМА],кіріс[СИПАТТАМА],\"<=\"&DtEnd,кіріс[СИПАТТАМА],\">=\"&DtMiddle+1)","v":0},{"$f":"SUMIFS(кіріс[СОМА],кіріс[СИПАТТАМА],\"<=\"&DtEnd,кіріс[СИПАТТАМА],\">=\"&DtMiddle+1)","v":0},{"$f":"SUMIFS(кіріс[СОМА],кіріс[СИПАТТАМА],\"<=\"&DtEnd,кіріс[СИПАТТАМА],\">=\"&DtMiddle+1)","v":0},{"$f":"SUMIFS(кіріс[СОМА],кіріс[СИПАТТАМА],\"<=\"&DtEnd,кіріс[СИПАТТАМА],\">=\"&DtMiddle+1)","v":0},{"$f":"SUMIFS(кіріс[СОМА],кіріс[СИПАТТАМА],\"<=\"&DtEnd,кіріс[СИПАТТАМА],\">=\"&DtMiddle+1)","v":0},{"$f":"SUMIFS(кіріс[СОМА],кіріс[СИПАТТАМА],\"<=\"&DtEnd,кіріс[СИПАТТАМА],\">=\"&DtMiddle+1)","v":0},{"$f":"SUMIFS(кіріс[СОМА],кіріс[СИПАТТАМА],\"<=\"&DtEnd,кіріс[СИПАТТАМА],\">=\"&DtMiddle+1)","v":0},{"$f":"SUMIFS(кіріс[СОМА],кіріс[СИПАТТАМА],\"<=\"&DtEnd,кіріс[СИПАТТАМА],\">=\"&DtMiddle+1)","v":0},{"$f":"SUMIFS(кіріс[СОМА],кіріс[СИПАТТАМА],\"<=\"&DtEnd,кіріс[СИПАТТАМА],\">=\"&DtMiddle+1)","v":0}]
[null,null,"1-15 шығындар",{"$f":"SUMIFS(Шығындар[СОМА],Шығындар[КҮНІ],\"<=\"&DtMiddle,Шығындар[КҮНІ],\">=\"&DtStart)","v":0},{"$f":"SUMIFS(Шығындар[СОМА],Шығындар[КҮНІ],\"<=\"&DtEnd,Шығындар[КҮНІ],\">=\"&DtStart)","v":0},{"$f":"SUMIFS(Шығындар[СОМА],Шығындар[КҮНІ],\"<=\"&DtEnd,Шығындар[КҮНІ],\">=\"&DtStart)","v":0},{"$f":"SUMIFS(Шығындар[СОМА],Шығындар[КҮНІ],\"<=\"&DtEnd,Шығындар[КҮНІ],\">=\"&DtStart)","v":0},{"$f":"SUMIFS(Шығындар[СОМА],Шығындар[КҮНІ],\"<=\"&DtEnd,Шығындар[КҮНІ],\">=\"&DtStart)","v":0},{"$f":"SUMIFS(Шығындар[СОМА],Шығындар[КҮНІ],\"<=\"&DtEnd,Шығындар[КҮНІ],\">=\"&DtStart)","v":0},{"$f":"SUMIFS(Шығындар[СОМА],Шығындар[КҮНІ],\"<=\"&DtEnd,Шығындар[КҮНІ],\">=\"&DtStart)","v":0},{"$f":"SUMIFS(Шығындар[СОМА],Шығындар[КҮНІ],\"<=\"&DtEnd,Шығындар[КҮНІ],\">=\"&DtStart)","v":0},{"$f":"SUMIFS(Шығындар[СОМА],Шығындар[КҮНІ],\"<=\"&DtEnd,Шығындар[КҮНІ],\">=\"&DtStart)","v":0},{"$f":"SUMIFS(Шығындар[СОМА],Шығындар[КҮНІ],\"<=\"&DtEnd,Шығындар[КҮНІ],\">=\"&DtStart)","v":0},{"$f":"SUMIFS(Шығындар[СОМА],Шығындар[КҮНІ],\"<=\"&DtEnd,Шығындар[КҮНІ],\">=\"&DtStart)","v":1225},{"$f":"SUMIFS(Шығындар[СОМА],Шығындар[КҮНІ],\"<=\"&DtEnd,Шығындар[КҮНІ],\">=\"&DtStart)","v":6125}]
[null,null,"Ай соңындағы 16-шығын",{"$f":"SUMIFS(Шығындар[СОМА],Шығындар[КҮНІ],\"<=\"&DtEnd,Шығындар[КҮНІ],\">=\"&DtMiddle+1)","v":0},{"$f":"SUMIFS(Шығындар[СОМА],Шығындар[КҮНІ],\"<=\"&DtEnd,Шығындар[КҮНІ],\">=\"&DtMiddle+1)","v":0},{"$f":"SUMIFS(Шығындар[СОМА],Шығындар[КҮНІ],\"<=\"&DtEnd,Шығындар[КҮНІ],\">=\"&DtMiddle+1)","v":0},{"$f":"SUMIFS(Шығындар[СОМА],Шығындар[КҮНІ],\"<=\"&DtEnd,Шығындар[КҮНІ],\">=\"&DtMiddle+1)","v":0},{"$f":"SUMIFS(Шығындар[СОМА],Шығындар[КҮНІ],\"<=\"&DtEnd,Шығындар[КҮНІ],\">=\"&DtMiddle+1)","v":0},{"$f":"SUMIFS(Шығындар[СОМА],Шығындар[КҮНІ],\"<=\"&DtEnd,Шығындар[КҮНІ],\">=\"&DtMiddle+1)","v":0},{"$f":"SUMIFS(Шығындар[СОМА],Шығындар[КҮНІ],\"<=\"&DtEnd,Шығындар[КҮНІ],\">=\"&DtMiddle+1)","v":0},{"$f":"SUMIFS(Шығындар[СОМА],Шығындар[КҮНІ],\"<=\"&DtEnd,Шығындар[КҮНІ],\">=\"&DtMiddle+1)","v":0},{"$f":"SUMIFS(Шығындар[СОМА],Шығындар[КҮНІ],\"<=\"&DtEnd,Шығындар[КҮНІ],\">=\"&DtMiddle+1)","v":0},{"$f":"SUMIFS(Шығындар[СОМА],Шығындар[КҮНІ],\"<=\"&DtEnd,Шығындар[КҮНІ],\">=\"&DtMiddle+1)","v":0},{"$f":"SUMIFS(Шығындар[СОМА],Шығындар[КҮНІ],\"<=\"&DtEnd,Шығындар[КҮНІ],\">=\"&DtMiddle+1)","v":100},{"$f":"SUMIFS(Шығындар[СОМА],Шығындар[КҮНІ],\"<=\"&DtEnd,Шығындар[КҮНІ],\">=\"&DtMiddle+1)","v":775}]

{"sheet":"Шығындар & табыс","index":1,"n_rows":40,"n_cols":10,"rows_kept":40,"cut":false,"hidden":false,"merged":[]}
[]
[null,null,"Жарты айлық әшкі бюджет",null,null,null,null,null,null,"ТАБЫС & ШЫҒЫНДАР"]
[]
[]
[]
[null,null,"ТАБЫС",null,null,null,"ШЫҒЫНДАР"]
[]
[null,null,"КҮНІ","СИПАТТАМА","СОМА",null,"КҮНІ","САНАТ","СИПАТТАМА","СОМА"]
[null,null,{"$f":"NOW()-14","v":"2013-02-06T14:38:14.710"},"Давидтің төлем чектері",1300,null,{"$f":"NOW()-7","v":"2013-02-13T14:38:14.710"},"Үй шаруасы","Ипотека",1000]
[null,null,{"$f":"NOW()-14","v":"2013-02-06T14:38:14.710"},"Петтің төлем чектері",1300,null,{"$f":"NOW()-7","v":"2013-02-13T14:38:14.710"},"Үй шаруасы","Электр тогы",100]
[null,null,{"$f":"NOW()-28","v":"2013-01-23T14:38:14.710"},"Давидтің төлем чектері",1500,null,"2013-02-13T14:38:14.710","Үй шаруасы","Су/канализация",50]
[null,null,"2013-01-23T14:38:14.710","Петтің төлем чектері",1600,null,"2013-02-13T14:38:14.710","Үй шаруасы","Үйді ұстау шығындары",25]
[null,null,{"$f":"NOW()-42","v":"2013-01-09T14:38:14.710"},"Давидтің төлем чектері",1300,null,"2013-02-13T14:38:14.710","Үй шаруасы","Ұялы телефон",100]
[null,null,"2013-01-09T14:38:14.710","Петтің төлем чектері",1300,null,"2013-02-13T14:38:14.710","Үй шаруасы","Үй телефоны",30]
[null,null,{"$f":"NOW()-56","v":"2012-12-26T14:38:14.710"},"Давидтің төлем чектері",1500,null,"2013-02-13T14:38:14.710","Үй шаруасы","Интернет",50]
[null,null,"2012-12-26T14:38:14.710","Петтің төлем чектері",1600,null,"2013-02-13T14:38:14.710","Үй шаруасы","Теледидар",50]
[null,null,{"$f":"NOW()-70","v":"2012-12-12T14:38:14.710"},"Давидтің төлем чектері",1300,null,"2013-02-13T14:38:14.710","Үй шаруасы","Қызмет көрсету/жөндеу жұмыстары",25]
[null,null,null,null,null,null,{"$f":"NOW()-8","v":"2013-02-12T14:38:14.710"},"Үй шаруасы","1-Несие картасы",100]
[null,null,null,null,null,null,{"$f":"NOW()-9","v":"2013-02-11T14:38:14.710"},"Ойын-сауық","Фильмдер",37]
[null,null,null,null,null,null,{"$f":"NOW()-10","v":"2013-02-10T14:38:14.710"},"Азық-түлік","Сатып алулар",350]
[null,null,null,null,null,null,{"$f":"NOW()-11","v":"2013-02-09T14:38:14.710"},"Азық-түлік","Сыртта тамақтану",75]
[null,null,null,null,null,null,{"$f":"NOW()-12","v":"2013-02-08T14:38:14.710"},"Балалар","Түсті ас ақысы",150]
[null,null,null,null,null,null,{"$f":"NOW()-13","v":"2013-02-07T14:38:14.710"},"Инвестициялық шоттар","Жинақтар",250]
[null,null,null,null,null,null,{"$f":"NOW()-14","v":"2013-02-06T14:38:14.710"},"Инвестициялық шоттар","Инвестициялық шот",250]
[null,null,null,null,null,null,{"$f":"NOW()-15","v":"2013-02-05T14:38:14.710"},"Жеке","Денсаулық/Фитнес орталықтары",100]
[null,null,null,null,null,null,{"$f":"NOW()-16","v":"2013-02-04T14:38:14.710"},"Үй жануарлары","Азық-түлік",50]
[null,null,null,null,null,null,{"$f":"NOW()-20","v":"2013-01-31T14:38:14.710"},"Үй жануарлары","Үй қызметкерлері",50]
[null,null,null,null,null,null,{"$f":"NOW()-20","v":"2013-01-31T14:38:14.710"},"Үй жануарлары","Өзге",50]
[null,null,null,null,null,null,{"$f":"NOW()-25","v":"2013-01-26T14:38:14.710"},"Тасымалдау","1-көлік төлемі ",300]
[null,null,null,null,null,null,{"$f":"NOW()-25","v":"2013-01-26T14:38:14.710"},"Тасымалдау","2-көлік төлемі ",350]
[null,null,null,null,null,null,{"$f":"NOW()-25","v":"2013-01-26T14:38:14.710"},"Тасымалдау","Көлікті сақтандыру",50]
[null,null,null,null,null,null,{"$f":"NOW()-30","v":"2013-01-21T14:38:14.710"},"Тасымалдау","Отын",50]
[null,null,null,null,null,null,{"$f":"NOW()-31","v":"2013-01-20T14:38:14.710"},"Тасымалдау","Отын",25]
[null,null,null,null,null,null,{"$f":"NOW()-42","v":"2013-01-09T14:38:14.710"},"Тасымалдау","Қызмет көрсету/Жөндеу жұмыстары",150]
[null,null,null,null,null,null,{"$f":"NOW()-45","v":"2013-01-06T14:38:14.710"},"Үй шаруасы","Ипотека",5000]
[null,null,null,null,null,null,{"$f":"NOW()-50","v":"2013-01-01T14:38:14.710"},"Үй шаруасы","Жеткізулер",200]
[null,null,null,null,null,null,{"$f":"NOW()-65","v":"2012-12-17T14:38:14.710"},"Үй шаруасы","Үй телефоны",100]
[null,null,null,null,null,null,{"$f":"NOW()-70","v":"2012-12-12T14:38:14.710"},"Үй шаруасы","Үйді ұстау шығындары",50]
[null,null,null,null,null,null,{"$f":"NOW()-75","v":"2012-12-07T14:38:14.710"},"Үй шаруасы","Ипотека",1000]
[null,null,null,null,null,null,{"$f":"NOW()-78","v":"2012-12-04T14:38:14.710"},"Ойын-сауық","Фильмдер",75]

{"sheet":"Бюджет есебі","index":2,"n_rows":41,"n_cols":8,"rows_kept":41,"cut":false,"hidden":false,"merged":[]}
[]
[null,null,"Жарты айлық әшкі бюджет",null,null,null,null,"БЮДЖЕТ ЕСЕБІ"]
[]
[]
[]
[]
[]
[]
[]
[]
[]
[]
[null,null,"ШЫҒЫНДАР",null,null,"САНАТ ЖАЛПЫ ЖИЫНДАРЫ"]
[]
[null,null,"СИПАТТАМА","ЖАЛПЫ"]
[null,null,"1-көлік төлемі ",300]
[null,null,"1-Несие картасы",100]
[null,null,"2-көлік төлемі ",350]
[null,null,"Азық-түлік",50]
[null,null,"Денсаулық/Фитнес орталықтары",100]
[null,null,"Жеткізулер",200]
[null,null,"Жинақтар",250]
[null,null,"Инвестициялық шот",250]
[null,null,"Интернет",50]
[null,null,"Ипотека",7000]
[null,null,"Көлікті сақтандыру",50]
[null,null,"Қызмет көрсету/жөндеу жұмыстары",175]
[null,null,"Отын",75]
[null,null,"Өзге",50]
[null,null,"Сатып алулар",350]
[null,null,"Су/канализация",50]
[null,null,"Сыртта тамақтану",75]
[null,null,"Теледидар",50]
[null,null,"Түсті ас ақысы",150]
[null,null,"Ұялы телефон",100]
[null,null,"Үй қызметкерлері",50]
[null,null,"Үй телефоны",130]
[null,null,"Үйді ұстау шығындары",75]
[null,null,"Фильмдер",112]
[null,null,"Электр тогы",100]
[null,null,"ЖАЛПЫ",10242]

{"sheet":"Деректер тізімдері","index":3,"n_rows":20,"n_cols":14,"rows_kept":20,"cut":false,"hidden":false,"merged":[]}
[]
[null,null,"Жарты айлық әшкі бюджет",null,null,null,null,null,null,null,null,null,null,"ДЕРЕКТЕР ТІЗІМІ"]
[]
[]
[null,null,"ОРНАТУ     Төмендегі санат деректері Шығындар & Табыс бетінің Шығындар кестесіндегі ашылмалы тізімдерде орналасқан. Тізімді жаңарту үшін әр санаттың төменгі жағындағы санат атауларын не сипаттамаларын өзгертіңіз."]
[]
[null,null,"Үй шаруасы","Ойын-сауық","Азық-түлік","Сыйлықтар/қайырымдылық","Балалар","Инвестициялық шоттар","Медициналық қызметтер","Өзге","Жеке","Үй жануарлары","Салықтар","Тасымалдау"]
[null,null,"Ипотека","Фильмдер","Сатып алулар","1-қайырымдылық","Киім-кешек","Жеке зейнетақы шоты","Дәрігер/емхана","Өзге","Киім-кешек","Азық-түлік","Федерация","1-көлік төлемі "]
[null,null,"Электр тогы","Бейне/фильмдер","Сыртта тамақтану","2-қайырымдылық","Ойыншықтар/Ойындар","Жинақтар","Сақтандыру","Ұйымдағы ақшы жинау","Шаш/тырнақ","Жеткізулер","Штат","2-көлік төлемі "]
[null,null,"Су/Канализация","Әуен",null,"3-қайырымдылық","Түсті ас ақысы","Салыстыру",null,null,"Химиялық тазалау","Медициналық қызметтер","Жергілікті","Көлікті сақтандыру"]
[null,null,"Үйді ұстау шығындары","Концерттер/Tеатр",null,"Сыйлық","Жинаулар/төлемдер","Зейнеткерлік",null,null,"Денсаулық/Фитнес орталықтары","Үй қызметкерлері","Өзге","Лицензиялау/Тіркеу"]
[null,null,"Ұялы телефон","Спорт оқиғалары",null,null,"Мектеп үшін төленетін төлемдер","Инвестициялық шот",null,null,"Сауда","Өзге","Қорғаушы","Отын"]
[null,null,"Үй телефоны","Өзге",null,null,"Өзге","Колледж",null,null,"Өзге",null,"Балаға төленетін алимент","Қызмет көрсету/Жөндеу жұмыстары"]
[null,null,"Интернет",null,null,null,"Кір жуу шығындары","Несиелер",null,null,null,null,"Алимент","Қоғамдық көлік"]
[null,null,"Теледидар",null,null,null,null,"Студенттік несиелер",null,null,null,null,"Өзге"]
[null,null,"Қызмет көрсету/Жөндеу жұмыстары"]
[null,null,"Жеткізулер"]
[null,null,"Кабель/Интернет/Телефон"]
[null,null,"1-Несие картасы"]
[null,null,"2-Несие картасы"]

{"sheet":"Санат жиынтық кестесі","index":4,"n_rows":16,"n_cols":14,"rows_kept":16,"cut":false,"hidden":true,"merged":[]}
[]
[null,null,"Жарты айлық әшкі бюджет",null,null,null,null,null,null,null,null,null,null,"САНАТЖИЫНТЫҚ КЕСТЕСІ"]
[]
[]
[null,"Осы жыиынтық кесте — Бюджет есебіндегі Санат жалпы жиындары жиынтық диаграммасына арналған дерек көзі. "]
[]
[null,null,"Жол белгілері","Қосынды СОМА"]
[null,null,"Азық-түлік",425]
[null,null,"Балалар",150]
[null,null,"Жеке",100]
[null,null,"Инвестициялық шоттар",500]
[null,null,"Ойын-сауық",112]
[null,null,"Тасымалдау",925]
[null,null,"Үй жануарлары",150]
[null,null,"Үй шаруасы",7880]
[null,null,"Жалпы жиын",10242]